fUST/lending_fUST_20250218
["ID","MTS","AMOUNT","RATE_DAILY","PERIOD"]
[353463827,1739856643671,-500.0,0.00014356,2]
[353463828,1739856643681,-1866.91,0.00014356,2]
[353463829,1739856643690,-1000.88687676,0.00014395,2]
[353463830,1739856643700,-500.0,0.00014438,2]
[353463831,1739856643710,-500.0,0.00014438,2]
[353463832,1739856643719,-2281.11,0.00014438,2]
[353463833,1739856643728,-500.0,0.00014438,2]
[353463834,1739856643739,-324.58,0.00014438,2]
[353463835,1739856643749,-297.22,0.00014438,2]
[353463836,1739856643759,-500.0,0.00014438,2]
[353463837,1739856643771,-500.0,0.00014438,2]
[353463838,1739856643781,-1866.91,0.00014438,2]
[353463839,1739856643790,-1100.0,0.00014438,2]
[353463840,1739856643800,-600.37,0.0001452,2]
[353463841,1739856643809,-500.0,0.0001452,2]
[353463842,1739856643819,-2281.11,0.0001452,2]
[353463843,1739856643831,-500.0,0.0001452,2]
[353463844,1739856643841,-500.0,0.0001452,2]
[353463845,1739856643851,-240.09,0.0001452,2]
[353463846,1739856643860,-1866.91,0.0001452,2]
[353463847,1739856643870,-500.0,0.00014602,2]
[353463848,1739856643879,-2281.11,0.00014602,2]
[353463849,1739856643889,-500.0,0.00014602,2]
[353463850,1739856643900,-500.0,0.00014602,2]
[353463851,1739856643910,-1866.91,0.00014602,2]
[353463852,1739856643919,-479.58352288,0.0001464,2]
[353463853,1739856643929,-500.0,0.00014684,2]
[353463854,1739856643938,-2281.11,0.00014684,2]
[353463855,1739856643947,-500.0,0.00014684,2]
[353463856,1739856643957,-500.0,0.00014684,2]
[353463857,1739856643968,-1866.91,0.00014684,2]
[353463858,1739856643977,-336.52984247,0.00014735,2]
[353463859,1739856643987,-500.0,0.00014767,2]
[353463860,1739856643996,-2281.11,0.00014767,2]
[353463861,1739856644006,-500.0,0.00014767,2]
[353463862,1739856644015,-500.0,0.00014767,2]
[353463863,1739856644025,-1866.91,0.00014767,2]
[353463864,1739856644035,-536.7140925,0.00014821,2]
[353463865,1739856644044,-500.0,0.00014849,2]
[353463866,1739856644054,-2281.11,0.00014849,2]
[353463867,1739856644063,-500.0,0.00014849,2]
[353463868,1739856644073,-247.2,0.00014849,2]
[353463869,1739856644084,-1866.91,0.00014849,2]
[353463870,1739856644098,-8061.84555012,0.000149,2]
[353463871,1739856644111,-10077.14434103,0.000149,2]
[353463872,1739856644120,-500.0,0.00014931,2]
[353463873,1739856644130,-2281.11,0.00014931,2]
[353463874,1739856644139,-500.0,0.00014931,2]
[353463875,1739856644150,-1866.91,0.00014931,2]
[353463876,1739856644159,-150.0,0.00015,2]
[353463877,1739856644168,-500.0,0.00015013,2]
[353463878,1739856644178,-2281.11,0.00015013,2]
[353463879,1739856644187,-500.0,0.00015013,2]
[353463880,1739856644198,-1866.91,0.00015013,2]
[353463881,1739856644207,-1343.64092502,0.00015085,2]
[353463882,1739856644218,-500.0,0.00015095,2]
[353463883,1739856644227,-2281.11,0.00015095,2]
[353463884,1739856644237,-500.0,0.00015095,2]
[353463885,1739856644247,-1866.91,0.00015095,2]
[353463886,1739856644256,-500.0,0.00015178,2]
[353463887,1739856644265,-2281.11,0.00015178,2]
[353463888,1739856644275,-500.0,0.00015178,2]
[353463889,1739856644285,-1866.91,0.00015178,2]
[353463890,1739856644295,-343.04,0.0001526,2]
[353463891,1739856644304,-2281.11,0.0001526,2]
[353463892,1739856644314,-500.0,0.0001526,2]
[353463893,1739856644324,-1866.91,0.0001526,2]
[353463894,1739856644333,-2281.11,0.00015342,2]
[353463895,1739856644343,-210.67,0.00015342,2]
[353463896,1739856644353,-1866.91,0.00015342,2]
[353463897,1739856644363,-2281.11,0.00015424,2]
[353463898,1739856644374,-1866.91,0.00015424,2]
[353463899,1739856644383,-2281.11,0.00015506,2]
[353463900,1739856644393,-1866.91,0.00015506,2]
[353463901,1739856644403,-2281.23,0.00015589,2]
[353463902,1739856644412,-1867.12718194,0.00015589,2]
[353463903,1739856644422,-336.52984247,0.0001579,2]
[353463904,1739856644432,-1100.0,0.00015808,2]
[353463905,1739856644442,-700.0,0.00015987,2]
[353463906,1739856644451,-588.2,0.00016164,2]
[353463907,1739856644462,-153.0,0.000164,2]
[353463908,1739856644472,-153.0,0.000164,2]
[353463909,1739856644481,-153.0,0.000164,2]
[353463910,1739856644491,-153.0,0.000164,2]
[353463911,1739856644500,-153.0,0.000164,2]
[353463912,1739856644510,-153.0,0.000164,2]
[353463913,1739856644519,-223.08852745,0.0001643,2]
[353463914,1739856644528,-538.0,0.00016499,2]
[353463915,1739856644538,-1971.0,0.00016499,2]
[353463916,1739856644547,-2293.0,0.00016499,2]
[353463917,1739856644556,-336.52984247,0.00016845,2]
[353463918,1739856644565,-1000.0,0.00016862,30]
[353463919,1739856644575,-1000.0,0.00016862,30]
[353463920,1739856644584,-1000.0,0.00016862,30]
[353463921,1739856644593,-1000.0,0.00016862,30]
[353463922,1739856644602,-1000.0,0.00016862,30]
[353463923,1739856644611,-1187.81649,0.00016862,30]
[353463924,1739856644621,-1100.0,0.00017178,2]
[353463925,1739856644630,-216.0000907,0.00017178,2]
[353463926,1739856644640,-1343.64092502,0.00017212,2]
[353463927,1739856644649,-427.711684,0.00017222,2]
[353463928,1739856644659,-153.0,0.00017222,2]
[353463929,1739856644668,-155.6037324,0.00017222,2]
[353463930,1739856644677,-306.7597851,0.00017222,2]
[353463931,1739856644686,-154.7234452,0.00017222,2]
[353463932,1739856644696,-153.0,0.00017222,2]
[353463933,1739856644706,-153.0,0.00017222,2]
[353463934,1739856644717,-153.0,0.00017222,2]
[353463935,1739856644726,-154.7234452,0.00017222,2]
[353463936,1739856644736,-153.0,0.00017222,2]
[353463937,1739856644745,-154.7234452,0.00017222,2]
[353463938,1739856644755,-153.0,0.00017222,2]
[353463939,1739856644765,-153.0,0.00017222,2]
[353463940,1739856644775,-153.0,0.00017222,2]
[353463941,1739856644785,-154.7234452,0.00017222,2]
[353463942,1739856644795,-153.0,0.00017222,2]
[353463943,1739856644804,-154.7234452,0.00017222,2]
[353463944,1739856644814,-153.0,0.00017222,2]
[353463945,1739856644826,-154.7234452,0.00017222,2]
[353463946,1739856644836,-153.0,0.00017222,2]
[353463947,1739856644847,-153.0,0.00017222,2]
[353463948,1739856644856,-216.0000907,0.00017222,2]
[353463949,1739856644867,-153.0,0.00017222,2]
[353463950,1739856644877,-154.7234452,0.00017222,2]
[353463951,1739856644887,-153.0,0.00017222,2]
[353463952,1739856644896,-153.0,0.00017222,2]
[353463953,1739856644907,-154.7234452,0.00017222,2]
[353463954,1739856644917,-153.0,0.00017222,2]
[353463955,1739856644927,-216.0000907,0.00017222,2]
[353463956,1739856644937,-216.0000907,0.00017222,2]
[353463957,1739856644947,-154.7234452,0.00017222,2]
[353463958,1739856644956,-153.0,0.00017222,2]
[353463959,1739856644968,-153.0,0.00017222,2]
[353463960,1739856644978,-153.0,0.00017222,2]
[353463961,1739856644987,-216.0000907,0.00017222,2]
[353463962,1739856644998,-154.7234452,0.00017222,2]
[353463963,1739856645007,-153.0,0.00017222,2]
[353463964,1739856645017,-153.0,0.00017222,2]
[353463965,1739856645027,-154.7234452,0.00017222,2]
[353463966,1739856645037,-216.0000907,0.00017222,2]
[353463967,1739856645047,-153.0,0.00017222,2]
[353463968,1739856645056,-153.0,0.00017222,2]
[353463969,1739856645066,-153.0,0.00017222,2]
[353463970,1739856645075,-154.7234452,0.00017222,2]
[353463971,1739856645085,-216.0000907,0.00017222,2]
[353463972,1739856645094,-154.7234452,0.00017222,2]
[353463973,1739856645104,-216.0000907,0.00017222,2]
[353463974,1739856645113,-216.0000907,0.00017222,2]
[353463975,1739856645123,-153.0,0.00017222,2]
[353463976,1739856645134,-154.7234452,0.00017222,2]
[353463977,1739856645143,-153.0,0.00017222,2]
[353463978,1739856645154,-154.7234452,0.00017222,2]
[353463979,1739856645163,-216.0000907,0.00017222,2]
[353463980,1739856645173,-154.7234452,0.00017222,2]
[353463981,1739856645183,-306.0,0.00017222,2]
[353463982,1739856645192,-216.0000907,0.00017222,2]
[353463983,1739856645202,-216.0000907,0.00017222,2]
[353463984,1739856645213,-154.7234452,0.00017222,2]
[353463985,1739856645223,-154.7234452,0.00017222,2]
[353463986,1739856645233,-216.0000907,0.00017222,2]
[353463987,1739856645242,-216.0000907,0.00017222,2]
[353463988,1739856645252,-216.0000907,0.00017222,2]
[353463989,1739856645263,-216.0000907,0.00017222,2]
[353463990,1739856645272,-153.0534347,0.00017222,2]
[353463991,1739856645282,-400.0,0.00017332,2]
[353463992,1739856645293,-588.2,0.00017534,4]
[353463993,1739856645302,-1747.0,0.000176,2]
[353463994,1739856645312,-1746.0,0.000176,2]
[353463995,1739856645322,-1746.0,0.000176,2]
[353463996,1739856645331,-1746.0,0.000176,2]
[353463997,1739856645341,-162.0,0.000176,2]
[353463998,1739856645351,-162.0,0.000176,3]
[353463999,1739856645360,-161.01347184,0.000176,6]
[353464000,1739856645370,-366.7689426,0.00017639,2]
[353464001,1739856645380,-153.0,0.0001777,2]
[353464002,1739856645390,-153.0,0.0001777,2]
[353464003,1739856645400,-10749.1274002,0.00017869,2]
[353464004,1739856645488,-236935.88658894,0.00017879,5]
[353464005,1739856645498,-136725.7322521,0.00017879,15]
[353464006,1739856645508,-3000.0,0.000179,2]
[353464007,1739856645517,-162.0,0.000179,3]
[353464008,1739856645527,-440.0,0.000179,2]
[353464009,1739856645537,-171.65,0.000179,31]
[353464010,1739856645546,-171.65,0.000179,31]
[353464011,1739856645556,-171.65,0.000179,31]
[353464012,1739856645565,-171.65,0.000179,31]
[353464013,1739856645575,-171.65,0.000179,31]
[353464014,1739856645584,-7150.72474491,0.000179,2]
[353464015,1739856645594,-336.52984247,0.000179,2]
[353464016,1739856645603,-159.93229297,0.000179,2]
[353464017,1739856645613,-159.93229297,0.000179,2]
[353464018,1739856645622,-159.93229297,0.000179,2]
[353464019,1739856645631,-159.93229297,0.000179,2]
[353464020,1739856645641,-159.93229297,0.000179,2]
[353464021,1739856645650,-159.93229297,0.000179,2]
[353464022,1739856645659,-159.93229297,0.000179,2]
[353464023,1739856645669,-159.93,0.000179,2]
[353464024,1739856645678,-157.12646327,0.000179,2]
[353464025,1739856645688,-157.12646327,0.000179,2]
[353464026,1739856645697,-157.12646327,0.000179,2]
[353464027,1739856645707,-157.12646327,0.000179,2]
[353464028,1739856645718,-157.12646327,0.000179,2]
[353464029,1739856645727,-157.12646327,0.000179,2]
[353464031,1739856645736,-157.12646327,0.000179,2]
[353464033,1739856645745,-157.12646327,0.000179,2]
[353464034,1739856645755,-157.12646327,0.000179,2]
[353464035,1739856645765,-157.12646327,0.000179,2]
[353464037,1739856645774,-157.12646327,0.000179,2]
[353464038,1739856645783,-157.12646327,0.000179,2]
[353464039,1739856645792,-157.12646327,0.000179,2]
[353464041,1739856645801,-157.12646327,0.000179,2]
[353464043,1739856645811,-157.12646327,0.000179,2]
[353464045,1739856645821,-157.12646327,0.000179,2]
[353464047,1739856645833,-157.12646327,0.000179,2]
[353464049,1739856645843,-157.12646327,0.000179,2]
[353464051,1739856645852,-157.12,0.000179,2]
[353464054,1739856645862,-160.0,0.000179,5]
[353464057,1739856645872,-500.0,0.00017973,2]
[353464060,1739856645882,-500.0,0.00017973,2]
[353464062,1739856645892,-1343.64092502,0.0001799,2]
[353464064,1739856645903,-4030.92277506,0.0001799,2]
[353464066,1739856645913,-152.3254028,0.00017998,2]
[353464068,1739856645923,-440.0,0.00017999,2]
[353464070,1739856645932,-62805.21928401,0.00018,5]
[353464072,1739856645943,-298389.11816755,0.00018,15]
[353464074,1739856645952,-309738.91424564,0.00018,15]
[353464075,1739856645963,-882170.93654834,0.00018,15]
[353464076,1739856645973,-301201.33028217,0.00018,15]
[353464077,1739856645982,-258153.84788194,0.00018,15]
[353464079,1739856646029,-904.08078647,0.00018,15]
[353464080,1739856646040,-2857.59034575,0.00018,15]
[353464081,1739856646051,-5081.5304716,0.00018,15]
[353464086,1739856650183,-800.88919395,0.00018,15]
[353464087,1739856650267,-500.0,0.00013698,2]
[353464088,1739856650278,-500.0,0.00013698,2]
[353464089,1739856650287,-500.0,0.00013698,2]
[353464090,1739856650297,-524.3,0.00013698,2]
[353464091,1739856650307,-500.0,0.0001378,2]
[353464092,1739856650317,-500.0,0.00013863,2]
[353464093,1739856650326,-500.0,0.00013945,2]
[353464094,1739856650336,-629.279954,0.00018,5]
[353464095,1739856650378,-500.0,0.00013698,2]
[353464096,1739856650388,-631.82065212,0.00018,5]
[353464097,1739856650399,-216.22934788,0.00018,15]
[353464098,1739856650444,-200.0,0.000136,3]
[353464099,1739856650455,-147.0,0.00018,15]
[353464100,1739856650469,-894.242857,0.00018,15]
[353464101,1739856650481,-24729.37887997,0.00018,15]
[353464197,1739857552128,-158.99207633,0.00010472,2]
[353464198,1739857552151,-158.99207633,0.00010578,2]
[353464199,1739857552174,-400.0,0.00010685,2]
[353464200,1739857552197,-113.26232848,0.00011972,2]
[353464201,1739857627094,-303.04318944,0.00011852,2]
[353464202,1739857638094,-356.41823675,0.00011852,2]
[353464203,1739857641139,-379.39493426,0.00011852,2]
[353464204,1739857641164,-1186.73767152,0.00011972,2]
[353464205,1739857641187,-300.0,0.00011999,2]
[353464206,1739857641209,-1747.0,0.00012,2]
[353464207,1739857641231,-1746.0,0.00012,2]
[353464208,1739857641252,-1746.0,0.00012,2]
[353464209,1739857641274,-1385.14722751,0.00012,2]
[353464210,1739857652078,-360.85277249,0.00012,2]
[353464211,1739857652099,-399.6674671,0.00012855,2]
[353464212,1739857652121,-420.0,0.00013172,2]
[353464213,1739857652142,-318.99152103,0.00013342,2]
[353464214,1739857653087,-637.19270221,0.00013342,2]
[353464218,1739857752101,-1500.0,0.00011972,2]
[353464285,1739857832637,-246.99571098,0.00013673,2]
[353464287,1739857832647,-500.0,0.00013673,2]
[353464289,1739857832656,-152.01026776,0.00013673,2]
[353464291,1739857832666,-324.73409903,0.0001368,2]
[353464293,1739857832675,-300.0,0.00013696,2]
[353464295,1739857832685,-691.73928813,0.00013697,2]
[353464297,1739857832694,-500.0,0.00013697,2]
[353464299,1739857832704,-500.0,0.00013697,2]
[353464301,1739857832713,-500.0,0.00013697,2]
[353464303,1739857832722,-367.36193748,0.00013697,2]
[353464305,1739857832731,-389.28062242,0.00013697,2]
[353464307,1739857832741,-500.0,0.00013697,2]
[353464309,1739857832750,-500.0,0.00013697,2]
[353464311,1739857832759,-500.0,0.00013697,2]
[353464313,1739857832769,-464.7378833,0.00013697,2]
[353464315,1739857832778,-226.74590759,0.00013697,2]
[353464317,1739857832787,-500.0,0.00013697,2]
[353464319,1739857832796,-500.0,0.00013697,2]
[353464321,1739857832806,-500.0,0.00013697,2]
[353464323,1739857832815,-500.0,0.00013697,2]
[353464325,1739857832823,-500.0,0.00013697,2]
[353464327,1739857832833,-500.0,0.00013697,2]
[353464329,1739857832842,-411.73999521,0.00013697,2]
[353464331,1739857832851,-500.0,0.00013697,2]
[353464333,1739857832860,-500.0,0.00013697,2]
[353464335,1739857832869,-500.0,0.00013697,2]
[353464337,1739857832879,-500.0,0.00013697,2]
[353464339,1739857832888,-500.0,0.00013697,2]
[353464341,1739857832898,-500.0,0.00013697,2]
[353464343,1739857832907,-500.0,0.00013697,2]
[353464345,1739857832917,-500.0,0.00013697,2]
[353464347,1739857832926,-500.0,0.00013697,2]
[353464349,1739857832935,-500.0,0.00013697,2]
[353464351,1739857832944,-500.0,0.00013697,2]
[353464352,1739857832955,-500.0,0.00013697,2]
[353464354,1739857832964,-500.0,0.00013697,2]
[353464356,1739857832974,-500.0,0.00013697,2]
[353464358,1739857832983,-500.0,0.00013697,2]
[353464360,1739857832992,-353.34631933,0.00013697,2]
[353464362,1739857833001,-500.0,0.00013697,2]
[353464363,1739857833011,-500.0,0.00013697,2]
[353464365,1739857833020,-500.0,0.00013697,2]
[353464367,1739857833030,-500.0,0.00013697,2]
[353464369,1739857833039,-500.0,0.00013697,2]
[353464371,1739857833048,-500.0,0.00013697,2]
[353464373,1739857833058,-500.0,0.00013697,2]
[353464375,1739857833067,-647.33379256,0.00013697,2]
[353464376,1739857833076,-505.85453913,0.00013698,2]
[353464377,1739857833086,-480.04614986,0.00013698,2]
[353464378,1739857833095,-500.0,0.00013698,2]
[353464379,1739857833105,-500.0,0.00013698,2]
[353464380,1739857833114,-628.07373742,0.00013698,2]
[353464381,1739857833123,-500.0,0.00013698,2]
[353464382,1739857833132,-500.0,0.00013698,2]
[353464383,1739857833141,-500.0,0.00013698,2]
[353464384,1739857833151,-500.0,0.00013698,2]
[353464385,1739857833160,-500.0,0.00013698,2]
[353464386,1739857833170,-500.0,0.00013698,2]
[353464387,1739857833179,-500.0,0.00013698,2]
[353464388,1739857833188,-500.0,0.00013698,2]
[353464389,1739857833198,-500.0,0.00013698,2]
[353464390,1739857833209,-503.20686269,0.00013698,2]
[353464391,1739857833223,-500.0,0.00013698,2]
[353464392,1739857833232,-502.65064389,0.00013698,2]
[353464393,1739857833242,-500.0,0.00013698,2]
[353464394,1739857833251,-500.0,0.00013698,2]
[353464395,1739857833262,-500.0,0.00013698,2]
[353464396,1739857833271,-500.0,0.00013698,2]
[353464397,1739857833280,-500.0,0.00013698,2]
[353464398,1739857833291,-502.51766207,0.00013698,2]
[353464399,1739857833301,-501.37182933,0.00013698,2]
[353464400,1739857833311,-500.0,0.00013698,2]
[353464401,1739857833320,-501.16602888,0.00013698,2]
[353464402,1739857833330,-501.99312541,0.00013698,2]
[353464403,1739857833340,-500.0,0.00013698,2]
[353464404,1739857833350,-504.94025662,0.00013698,2]
[353464405,1739857833359,-502.55750821,0.00013698,2]
[353464406,1739857833369,-502.59527996,0.00013698,2]
[353464407,1739857833379,-505.07929448,0.00013698,2]
[353464408,1739857833389,-503.96083581,0.00013698,2]
[353464409,1739857833398,-527.44135703,0.00013698,2]
[353464410,1739857833408,-502.17033903,0.00013698,2]
[353464411,1739857833417,-501.84333182,0.00013698,2]
[353464412,1739857833426,-482.3699484,0.00013698,2]
[353464413,1739857833435,-501.74594599,0.00013698,2]
[353464414,1739857833444,-500.0,0.00013698,2]
[353464415,1739857833456,-500.0,0.00013698,2]
[353464416,1739857833466,-500.0,0.00013698,2]
[353464417,1739857833475,-500.0,0.00013698,2]
[353464418,1739857833485,-500.0,0.00013698,2]
[353464419,1739857833494,-500.0,0.00013698,2]
[353464420,1739857833504,-500.0,0.00013698,2]
[353464421,1739857833514,-286.03603718,0.00013698,2]
[353464422,1739857833523,-503.07202402,0.00013698,2]
[353464423,1739857833533,-528.27,0.00013698,2]
[353464424,1739857833542,-500.0,0.00013698,2]
[353464425,1739857833642,-500.0,0.00013698,2]
[353464426,1739857833656,-500.0,0.00013698,2]
[353464427,1739857833667,-500.0,0.00013698,2]
[353464428,1739857833677,-500.0,0.00013698,2]
[353464429,1739857833687,-500.0,0.00013698,2]
[353464430,1739857833697,-500.0,0.00013698,2]
[353464431,1739857833707,-500.0,0.00013698,2]
[353464432,1739857833717,-502.02166102,0.00013698,2]
[353464433,1739857833726,-504.05133651,0.00013698,2]
[353464434,1739857833736,-500.0,0.00013698,2]
[353464435,1739857833745,-501.82976864,0.00013698,2]
[353464436,1739857833755,-500.0,0.00013698,2]
[353464437,1739857833765,-501.75269151,0.00013698,2]
[353464438,1739857833775,-501.28900454,0.00013698,2]
[353464439,1739857833784,-501.24523697,0.00013698,2]
[353464440,1739857833793,-502.132,0.00013698,2]
[353464441,1739857833803,-501.08928874,0.00013698,2]
[353464442,1739857833812,-504.26150352,0.00013698,2]
[353464443,1739857833821,-500.0,0.00013698,2]
[353464445,1739857833830,-501.8266129,0.00013698,2]
[353464447,1739857833839,-500.0,0.00013698,2]
[353464449,1739857833849,-500.0,0.00013698,2]
[353464451,1739857833859,-253.21969289,0.00013698,2]
[353464453,1739857833868,-500.0,0.00013698,2]
[353464454,1739857833878,-562.85,0.00013698,2]
[353464456,1739857833888,-502.7453557,0.00013698,2]
[353464458,1739857833897,-500.0,0.00013698,2]
[353464459,1739857833907,-501.8765187,0.00013698,2]
[353464461,1739857833916,-500.0,0.00013698,2]
[353464463,1739857833926,-503.77826679,0.00013698,2]
[353464465,1739857833935,-501.63734899,0.00013698,2]
[353464467,1739857833945,-500.0,0.00013698,2]
[353464469,1739857833955,-625.134702,0.00013698,2]
[353464471,1739857833965,-500.0,0.00013698,2]
[353464472,1739857833975,-500.0,0.00013698,2]
[353464474,1739857833985,-500.0,0.00013698,2]
[353464476,1739857833995,-178.61843389,0.00013698,2]
[353464478,1739857834005,-500.0,0.00013698,2]
[353464480,1739857834015,-500.0,0.00013698,2]
[353464481,1739857834024,-500.0,0.00013698,2]
[353464482,1739857834034,-511.01475335,0.00013698,2]
[353464484,1739857834043,-500.0,0.00013698,2]
[353464485,1739857834053,-500.0,0.00013698,2]
[353464486,1739857834062,-500.0,0.00013698,2]
[353464487,1739857834072,-500.0,0.00013698,2]
[353464488,1739857834082,-500.0,0.00013698,2]
[353464489,1739857834091,-502.99163922,0.00013698,2]
[353464490,1739857834101,-501.4005451,0.00013698,2]
[353464491,1739857834111,-501.68344605,0.00013698,2]
[353464492,1739857834120,-500.0,0.00013698,2]
[353464493,1739857834130,-500.0,0.00013698,2]
[353464494,1739857834140,-500.0,0.00013698,2]
[353464495,1739857834149,-500.0,0.00013698,2]
[353464496,1739857834158,-288.74828339,0.00013698,2]
[353464497,1739857834174,-211.25171661,0.00013698,2]
[353464498,1739857834183,-500.0,0.00013698,2]
[353464499,1739857834193,-488.74828539,0.00013698,2]
[353464531,1739857838339,-11.25171461,0.00013698,2]
[353464533,1739857838349,-410.40502293,0.00013698,2]
[353464535,1739857838364,-89.59497707,0.00013698,2]
[353464537,1739857838373,-439.19259874,0.00013698,2]
[353464539,1739857838384,-60.80740126,0.00013698,2]
[353464540,1739857838394,-500.0,0.00013698,2]
[353464542,1739857838403,-157.21212274,0.00013698,2]
[353464543,1739857838414,-344.3942221,0.00013698,2]
[353464544,1739857838423,-500.0,0.00013698,2]
[353464545,1739857838433,-500.0,0.00013698,2]
[353464546,1739857838442,-500.0,0.00013698,2]
[353464547,1739857838451,-500.0,0.00013698,2]
[353464548,1739857838461,-500.0,0.00013698,2]
[353464549,1739857838471,-500.0,0.00013698,2]
[353464550,1739857838481,-501.462895,0.00013698,2]
[353464551,1739857838493,-502.97212,0.00013698,2]
[353464552,1739857838502,-501.70467411,0.00013698,2]
[353464553,1739857838512,-576.48,0.00013698,2]
[353464554,1739857838521,-500.0,0.00013698,2]
[353464555,1739857838534,-449.7501184,0.00013698,2]
[353464556,1739857838549,-50.2498816,0.00013698,2]
[353464557,1739857838561,-500.0,0.00013698,2]
[353464558,1739857838572,-500.0,0.00013698,2]
[353464559,1739857838583,-500.0,0.00013698,2]
[353464560,1739857838594,-517.52,0.00013698,2]
[353464561,1739857838604,-500.0,0.00013698,2]
[353464562,1739857838615,-500.0,0.00013698,2]
[353464563,1739857838626,-500.0,0.00013698,2]
[353464564,1739857838637,-501.02880602,0.00013698,2]
[353464565,1739857838648,-500.0,0.00013698,2]
[353464566,1739857838659,-500.0,0.00013698,2]
[353464567,1739857838670,-500.0,0.00013698,2]
[353464568,1739857838681,-500.0,0.00013698,2]
[353464569,1739857838692,-258.35330489,0.00013698,2]
[353464570,1739857838703,-500.0,0.00013698,2]
[353464571,1739857838715,-502.77113163,0.00013698,2]
[353464572,1739857838728,-500.0,0.00013698,2]
[353464573,1739857838739,-500.0,0.00013698,2]
[353464574,1739857838752,-500.0,0.00013698,2]
[353464575,1739857838763,-502.19461125,0.00013698,2]
[353464576,1739857838774,-500.0,0.00013698,2]
[353464577,1739857838784,-168.42861288,0.00013698,2]
[353464578,1739857838795,-612.62,0.00013698,2]
[353464579,1739857838805,-500.0,0.00013698,2]
[353464580,1739857838816,-500.0,0.00013698,2]
[353464581,1739857838826,-501.36750273,0.00013698,2]
[353464582,1739857838837,-500.0,0.00013698,2]
[353464583,1739857838851,-500.0,0.00013698,2]
[353464584,1739857838862,-500.0,0.00013698,2]
[353464585,1739857838873,-500.0,0.00013698,2]
[353464586,1739857838884,-500.0,0.00013698,2]
[353464587,1739857838895,-500.0,0.00013698,2]
[353464588,1739857838905,-500.0,0.00013698,2]
[353464589,1739857838915,-500.0,0.00013698,2]
[353464590,1739857838926,-500.92910665,0.00013698,2]
[353464591,1739857838937,-564.58,0.00013698,2]
[353464592,1739857838947,-500.0,0.00013698,2]
[353464593,1739857838959,-631.92330334,0.00013698,2]
[353464594,1739857838970,-503.17141945,0.00013698,2]
[353464595,1739857838981,-500.0,0.00013698,2]
[353464596,1739857838992,-500.0,0.00013698,2]
[353464597,1739857839004,-500.0,0.00013698,2]
[353464598,1739857839015,-500.0,0.00013698,2]
[353464599,1739857839027,-500.0,0.00013698,2]
[353464600,1739857839039,-500.0,0.00013698,2]
[353464601,1739857839050,-500.0,0.00013698,2]
[353464602,1739857839061,-502.68176254,0.00013698,2]
[353464603,1739857839074,-507.51000782,0.00013698,2]
[353464604,1739857839085,-500.0,0.00013698,2]
[353464605,1739857839095,-500.0,0.00013698,2]
[353464606,1739857839105,-500.0,0.00013698,2]
[353464607,1739857839115,-500.0,0.00013698,2]
[353464608,1739857839125,-504.40682222,0.00013698,2]
[353464609,1739857839135,-500.0,0.00013698,2]
[353464610,1739857839145,-501.59839738,0.00013698,2]
[353464611,1739857839157,-500.0,0.00013698,2]
[353464612,1739857839167,-500.0,0.00013698,2]
[353464613,1739857839179,-500.0,0.00013698,2]
[353464614,1739857839191,-501.34277435,0.00013698,2]
[353464615,1739857839202,-500.0,0.00013698,2]